[Event "FRA-ch Teams Top 16-B 2022"]
[Site "Chartres"]
[Date "2022.06.10"]
[Round "2.28"]
[White "Rouler, Charly"]
[Black "Gozzoli, Yannick"]
[Result "1/2-1/2"]
[ECO "D32"]
[WhiteElo "2345"]
[BlackElo "2591"]
[Annotator "TA"]
[PlyCount "93"]
[EventDate "2022.06.09"]
[EventType "team-tourn"]
[EventCountry "FRA"]
[SourceTitle "playchess.com"]
[Source "ChessBase"]
[SourceQuality "1"]
[TimeControl "40/5400+30:1800+30"]

{[%evp 12,93,56,31,67,0,0,0,-8,-15,-10,-15,-8,-6,-15,-22,-13,-15,-12,-15,-11,-14,-10,-9,-10,-10,-8,-12,-16,-10,-8,-18,-15,-26,-9,-44,-48,-70,-70,-71,-54,-72,-81,-89,0,0,0,0,0,-51,0,0,0,0,0,0,0,0,0,-46,-46,-54,-54,-80,-85,-93,-93,-94,-94,-93,-94,-94,0,0,0,0,0,0,0,0,0,0,0,0]} 1. d4 {[%emt 0:00:37]} d5 {[%emt 0:03:31]} 2. c4 {[%emt 0:00:54]} e6 {[%emt 0:01:41]} 3. Nc3 {[%emt 0:00:32]} c5 {[%emt 0:02:26]} 4. cxd5 {[%emt 0:00:21]} cxd4 {[%emt 0:00:03]} 5. Qa4+ {[%emt 0:05:03]} Bd7 {[%emt 0:00:12]} 6. Qxd4 {[%emt 0:00:38]} exd5 {[%emt 0:00:04]} 7. Nf3 {[%emt 0:08:29]} ({Don't play} 7. Nxd5 Nc6 8. Qf4 Qa5+ 9. Nc3 (9. Qd2 Bb4 $17) 9... Nb4 $11) 7... Nc6 {[%emt 0:00:30] Against Qe5+. D32: Tarrasch Defence: Sidelines and lines without g3.} 8. Qd1 {[%emt 0:03:32] White is more active.} (8. Qxd5 $14 Nf6 9. Qd2) 8... Nf6 $11 {[%emt 0:20:06]} 9. Bg5 {[%emt 0:05:23]} Bb4 {[%emt 0:04:20]} 10. e3 {[%emt 0:05:09]} h6 {[%emt 0:03:55]} 11. Bxf6 {[%emt 0:00:27]} Qxf6 {[%emt 0:00:18]} 12. Rc1 {[%emt 0:00:03]} O-O {[%emt 0:08:02]} 13. Be2 {[%emt 0:02:10]} Be6 {[%emt 0:02:47]} (13... Rfd8 $5 {[%cal Rd5d4]}) 14. O-O {[%emt 0:07:54]} Rfd8 {[%emt 0:05:47] [#]} 15. a3 $146 {[%emt 0:06:22]} ({Predecessor:} 15. Qa4 Bd6 16. Rfd1 a6 17. g3 Rd7 18. Nxd5 Qxb2 {½-½ (18) Kaupat,T (1265)-Wagner,K (1797) GER email 2011}) 15... Ba5 {[%emt 0:06:29]} 16. b4 {[%emt 0:14:59]} Bb6 {[%emt 0:01:21]} 17. Nb5 {[%emt 0:07:17]} d4 {[%emt 0:03:32]} 18. Nbxd4 {[%emt 0:00:37]} Nxd4 {[%emt 0:00:05]} 19. Nxd4 {[%emt 0:00:19]} Bxd4 {[%emt 0:00:05]} 20. exd4 {[%emt 0:00:05]} Rxd4 {[%emt 0:00:04]} 21. Qc2 {[%emt 0:02:40]} Rad8 {[%emt 0:09:09]} 22. Bf3 {[%emt 0:03:07]} b5 {[%emt 0:03:38]} 23. Rfd1 {[%emt 0:05:28] Prevents Rd3.} Bf5 {[%emt 0:04:14]} 24. Qa2 {[%emt 0:06:06]} Rxd1+ $1 {[%emt 0:07:42]} 25. Rxd1 {[%emt 0:03:49]} Rxd1+ {[%emt 0:00:07]} 26. Bxd1 $15 {[%emt 0:00:04][%mdl 4096] Endgame KQB-KQB} Qc3 {[%emt 0:00:05][%cal Rc3e1]} 27. Qe2 {[%emt 0:00:11] [#] Against Qe1+} a6 {[%emt 0:00:27]} (27... Bg4 $1 $17 28. Qf1 (28. Qe8+ Kh7 $17) (28. f3 Be6) 28... Bxd1 29. Qxd1 Qxa3) 28. h4 $11 {[%emt 0:02:31]} Be6 {[%emt 0:09:16]} 29. Qf3 {[%emt 0:01:16]} Qd2 {[%emt 0:00:14]} 30. Kh2 {[%emt 0:03:56]} ({Better is} 30. h5 $11) 30... Bd5 {[%emt 0:00:51]} (30... g6 $1 $15) 31. Qe2 {[%emt 0:00:22]} Qf4+ {[%emt 0:00:36]} 32. g3 {[%emt 0:00:31]} Qd4 {[%emt 0:00:16]} 33. Bc2 {[%emt 0:00:31][%cal Re2e8] [#]} g5 {[%emt 0:01:10]} 34. Qe3 {[%emt 0:03:00]} Qf6 {[%emt 0:00:53]} 35. h5 {[%emt 0:01:21]} (35. Kh3 $11) 35... Bf3 $15 {[%emt 0:01:17]} 36. Bb3 {[%emt 0:01:39]} Kg7 {[%emt 0:00:36]} 37. Qa7 {[%emt 0:00:34]} Bxh5 {[%emt 0:01:41]} 38. Bd5 {[%emt 0:00:23]} Bf3 {[%emt 0:00:06]} 39. Bxf3 {[%emt 0:00:36]} Qxf3 $17 {[%emt 0:00:01] KQ-KQ} 40. Qd4+ {[%emt 0:00:54]} Kg6 {[%emt 0:00:57]} 41. Kg1 {[%emt 0:31:10]} f6 {[%emt 0:06:33]} ({Reject} 41... Qxa3 $6 42. Qe4+ f5 43. Qe6+ Kg7 44. Qe7+ Kh8 45. Qf8+ Kh7 46. Qf7+ Kh8 47. Qf8+ Kh7 48. Qf7+ Kh8 49. Qf8+ $11) (41... h5 $17 42. Qd8 Qf6 43. Qg8+ Kh6) 42. Qd7 $1 $11 {[%emt 0:00:00] The position is equal.} Qe4 {[%emt 0:12:39]} 43. Qc8 {[%emt 0:00:00]} Qe1+ {[%emt 0:09:28]} 44. Kg2 {[%emt 0:00:00]} Qe4+ {[%emt 0:00:08]} 45. Kg1 {[%emt 0:00:00]} Qe1+ {[%emt 0:01:01]} 46. Kg2 {[%emt 0:00:00]} Qe4+ {[%emt 0:00:03]} 47. Kg1 {[%emt 0:03:00] Weighted Error Value: White=0.10 (very precise) /Black=0.08 (flawless)} 1/2-1/2

[Event "FRA-ch Teams Top 16-B 2022"]
[Site "Chartres"]
[Date "2022.06.10"]
[Round "2.29"]
[White "Degraeve, Jean-Marc"]
[Black "Benitah, Yohan"]
[Result "1-0"]
[ECO "B23"]
[WhiteElo "2520"]
[BlackElo "2383"]
[Annotator "TA"]
[PlyCount "103"]
[EventDate "2022.06.09"]
[EventType "team-tourn"]
[EventCountry "FRA"]
[SourceTitle "playchess.com"]
[Source "ChessBase"]
[SourceQuality "1"]
[TimeControl "40/5400+30:1800+30"]

{[%evp 9,103,18,20,30,33,-12,-12,-15,0,-13,-12,-13,-9,-8,-8,-8,-14,-5,0,0,0,-33,-35,-41,-2,-6,-7,-14,0,0,0,-12,-4,-18,-21,-22,-25,-19,-26,-61,0,-32,-20,-16,0,-4,0,-55,0,0,0,0,0,-15,0,0,0,0,0,0,0,0,3,3,3,3,3,3,3,3,22,8,8,11,45,45,45,45,191,177,856,858,988,935,934,765,1021,1460,1451,1409,1426,1395,1305,1274,971,914]} 1. e4 {[%emt 0:00:05]} c5 {[%emt 0:00:35]} 2. Nc3 {[%emt 0:01:13]} d6 {[%emt 0:00:16]} 3. d4 {[%emt 0:07:51]} cxd4 {[%emt 0:01:15]} 4. Qxd4 {[%emt 0:00:06]} a6 {[%emt 0:00:45]} 5. Be3 {[%emt 0:05:32]} Nf6 {[%emt 0:02:59]} 6. Nd5 $1 {[%emt 0:23:22] B23: Closed Sicilian: Lines without g3.} Nbd7 {[%emt 0:04:54] [#]} 7. Bc4 $146 {[%emt 0:09:52]} (7. Qa4 $5 {[%cal Re3b6]} Nxd5 8. exd5 $11) ({Predecessor:} 7. O-O-O Nxd5 8. exd5 Nf6 9. Bg5 Qa5 10. Bxf6 gxf6 11. Kb1 Rg8 12. Ne2 f5 13. f4 {½-½ (43) Guseinov,G (2645)-Muradli,M (2310) Baku 2016}) 7... e6 {[%emt 0:10:23]} 8. Nxf6+ {[%emt 0:00:17] The position is equal.} Nxf6 {[%emt 0:00:07]} 9. Ne2 {[%emt 0:09:35]} Be7 {[%emt 0:04:42]} 10. f3 {[%emt 0:00:15]} O-O {[%emt 0:00:51]} 11. a4 {[%emt 0:02:11]} Bd7 {[%emt 0:04:34][%cal Od6d5]} 12. O-O {[%emt 0:05:54]} Bc6 {[%emt 0:03:07]} 13. Nc3 {[%emt 0:00:11]} Rc8 {[%emt 0:00:10]} 14. Rfd1 {[%emt 0:04:40]} Qa5 {[%emt 0:03:36]} 15. Bf1 {[%emt 0:04:10]} d5 {[%emt 0:03:26] Hoping for ...dxe4.} 16. exd5 {[%emt 0:02:13]} Nxd5 {[%emt 0:00:51]} 17. Nxd5 {[%emt 0:00:14]} Bxd5 {[%emt 0:00:17]} 18. Qd2 {[%emt 0:00:31]} Qc7 {[%emt 0:01:52]} 19. c4 {[%emt 0:08:05]} Bc6 {[%emt 0:02:36]} (19... Bxc4 $2 20. Rdc1 $18) 20. Qf2 {[%emt 0:01:08]} Rfd8 {[%emt 0:07:36]} 21. Rxd8+ {[%emt 0:03:40]} Qxd8 {[%emt 0:01:25]} 22. Bb6 {[%emt 0:00:15] Against Qa5} Qd6 {[%emt 0:00:48]} 23. a5 {[%emt 0:01:06]} Bf6 {[%emt 0:02:30]} 24. Rc1 {[%emt 0:01:17]} h6 {[%emt 0:04:42]} (24... Be5 $15 25. g3 Qb4) 25. b3 {[%emt 0:01:51]} Be5 {[%emt 0:13:09]} 26. h3 {[%emt 0:00:10]} Bh2+ {[%emt 0:06:01]} 27. Kh1 {[%emt 0:00:04]} Bf4 {[%emt 0:00:06][%cal Bh2f4,Bf4g5,Bg5e7][%mdl 32]} 28. Rc3 {[%emt 0:01:58]} (28. Be3 $11) 28... Qd1 {[%emt 0:01:55]} (28... e5 $15) 29. Rd3 $11 {[%emt 0:00:08]} Qb1 {[%emt 0:00:37]} 30. Qe2 {[%emt 0:00:33]} Bg5 {[%emt 0:02:17]} 31. Qd1 {[%emt 0:00:37]} Qb2 {[%emt 0:00:35]} 32. Be3 {[%emt 0:04:07]} Be7 {[%emt 0:02:37]} 33. Bd4 {[%emt 0:01:02]} Qa3 {[%emt 0:01:09]} 34. Qa1 {[%emt 0:01:22]} Qxa1 {[%emt 0:00:50]} 35. Bxa1 {[%emt 0:00:02]} Bb4 {[%emt 0:01:10]} 36. Bc3 {[%emt 0:00:04]} Bxc3 {[%emt 0:00:05]} 37. Rxc3 {[%emt 0:00:03][%mdl 4096] Endgame KRB-KRB} Rd8 {[%emt 0:00:05]} 38. Rd3 {[%emt 0:00:03] Prevents Rd1.} Rxd3 {[%emt 0:00:14]} 39. Bxd3 {[%emt 0:00:01] KB-KB} Kf8 {[%emt 0:01:35]} 40. Kg1 {[%emt 0:01:32]} Ke7 {[%emt 0:00:10]} 41. Kf2 {[%emt 0:30:17]} Kd6 {[%emt 0:30:59] Threatens to win with ...Kc5.} 42. b4 {[%emt 0:00:05]} e5 {[%emt 0:02:00]} 43. h4 {[%emt 0:04:18]} h5 {[%emt 0:00:00] [#] This costs Black the game.} ({Black should try} 43... Bd7 $14) 44. Ke3 $1 $18 {[%emt 0:00:00]} g6 $2 {[%emt 0:00:00] [#]} (44... Kc7 45. g3 Bd7) 45. g4 $1 {[%emt 0:00:00] White is clearly winning.} Bd7 {[%emt 0:00:00]} 46. gxh5 {[%emt 0:01:30]} gxh5 {[%emt 0:00:00]} 47. f4 {[%emt 0:00:00]} f5 {[%emt 0:00:00]} 48. Be2 {[%emt 0:00:00]} Be8 {[%emt 0:00:00]} 49. Bf3 {[%emt 0:00:00]} e4 {[%emt 0:01:16]} 50. Be2 {[%emt 0:00:00]} Ke6 {[%emt 0:01:39]} 51. Kd4 {[%emt 0:00:00]} Kd6 {[%emt 0:00:08]} 52. b5 {[%emt 0:00:00] Weighted Error Value: White=0.07 (flawless) /Black=0.17 (very precise)} 1-0

[Event "FRA-ch Teams Top 16-B 2022"]
[Site "Chartres"]
[Date "2022.06.10"]
[Round "2.30"]
[White "Crut, Aurelien"]
[Black "Pelletier, Yannick"]
[Result "0-1"]
[ECO "B22"]
[WhiteElo "2355"]
[BlackElo "2556"]
[Annotator "TA"]
[PlyCount "80"]
[EventDate "2022.06.09"]
[EventType "team-tourn"]
[EventCountry "FRA"]
[SourceTitle "playchess.com"]
[Source "ChessBase"]
[SourceQuality "1"]
[TimeControl "40/5400+30:1800+30"]

{[%evp 13,80,13,9,2,25,23,16,21,24,20,11,4,14,0,0,0,2,-5,0,0,21,14,28,20,31,0,0,0,0,0,0,0,0,0,0,0,0,0,0,-9,-10,-9,-11,-24,-2,-11,-11,-24,-22,-24,-24,-24,-16,-16,-16,-16,-16,-48,-52,-104,-104,-104,-104,-464,-464,-29967,-29971,-29997,-29998]} 1. e4 {[%emt 0:00:04]} c5 {[%emt 0:00:19]} 2. Nf3 {[%emt 0:00:08]} e6 {[%emt 0:00:21]} 3. c3 {[%emt 0:00:13]} d5 {[%emt 0:00:27]} 4. exd5 {[%emt 0:00:23]} Qxd5 {[%emt 0:00:08]} 5. d4 {[%emt 0:00:11]} Nf6 {[%emt 0:00:09]} 6. Be3 {[%emt 0:00:42]} cxd4 {[%emt 0:01:57]} 7. cxd4 {[%emt 0:00:25]} Bb4+ {[%emt 0:00:06]} 8. Nc3 {[%emt 0:00:21] B22: Sicilian: 2 c3.} O-O {[%emt 0:05:36]} 9. Be2 {[%emt 0:09:39] was the old line (9.Bd3).} b6 {[%emt 0:27:27]} 10. O-O {[%emt 0:07:33] The position is equal.} Bxc3 {[%emt 0:00:12]} 11. bxc3 {[%emt 0:00:04]} Ba6 {[%emt 0:00:12] Prevents c4.} 12. Bxa6 {[%emt 0:12:28]} Nxa6 {[%emt 0:00:07]} 13. Qe2 {[%emt 0:00:50] Recently 13.Ne5 got a lot of attention.} Nb8 {[%emt 0:03:00]} 14. c4 {[%emt 0:07:35]} Qe4 {[%emt 0:01:31]} 15. Qb2 {[%emt 0:09:31] [#]} Rc8 $146 {[%emt 0:09:27]} ({Predecessor:} 15... Nc6 16. Rac1 Rac8 17. Rfe1 Qf5 18. h3 h6 19. Re2 Rc7 20. Qb5 Ne7 21. Ne5 Rfc8 {½-½ (30) Pavasovic,D (2596)-Sutovsky,E (2639) Terme Zrece 2003}) 16. Rac1 {[%emt 0:04:35]} Nbd7 {[%emt 0:03:23]} 17. a4 {[%emt 0:09:31]} h6 {[%emt 0:08:03]} 18. Rfe1 {[%emt 0:04:15]} Qf5 {[%emt 0:11:34]} 19. Qb5 {[%emt 0:12:39]} Qxb5 {[%emt 0:00:07]} 20. axb5 {[%emt 0:00:05]} a6 {[%emt 0:00:02]} 21. bxa6 {[%emt 0:01:38]} Rxa6 {[%emt 0:26:52]} 22. Re2 {[%emt 0:18:40]} b5 {[%emt 0:00:30]} 23. cxb5 {[%emt 0:00:00]} Rxc1+ {[%emt 0:00:00]} 24. Bxc1 {[%emt 0:00:00]} Ra1 {[%emt 0:00:00][%cal Ba6a1,Ba1b1,Bb1b5,Bb5c5][%mdl 32]} 25. Rc2 {[%emt 0:00:00]} Rb1 {[%emt 0:01:30]} 26. Ne5 {[%emt 0:00:00]} Nxe5 {[%emt 0:00:00]} 27. dxe5 $11 {[%emt 0:00:00][%mdl 4096] Endgame KRB-KRN} Nd5 {[%emt 0:00:00] [#] White must now prevent ...Nb4.} 28. g3 {[%emt 0:00:00]} Rxb5 {[%emt 0:00:00]} 29. Rb2 {[%emt 0:00:00]} Rc5 {[%emt 0:00:00]} 30. Bd2 {[%emt 0:00:00]} g5 {[%emt 0:00:00]} 31. h4 gxh4 32. Bxh6 {[%emt 0:05:00]} hxg3 {[%emt 0:00:00]} 33. fxg3 {[%emt 0:00:00]} Kh7 {[%emt 0:00:00]} 34. Bf4 {[%emt 0:00:00]} Kg6 {[%emt 0:01:30]} 35. Rf2 {[%emt 0:00:15]} Nb4 {[%emt 0:02:18]} 36. Kg2 {[%emt 0:00:59]} (36. Rd2 $15) 36... Nd3 $17 {[%emt 0:00:36][%csl LRe5,LRf2]} 37. Re2 {[%emt 0:00:10]} Kf5 {[%emt 0:00:57] Black is more active.} 38. Re3 $2 {[%emt 0:00:55][%mdl 8192]} (38. Kf3 $17 {is more resistant.}) 38... Rc2+ $19 {[%emt 0:00:24]} ({Inferior is} 38... Nxf4+ 39. gxf4 Rc4 40. Kg3 $17) 39. Kh3 {[%emt 0:00:22] [#]} (39. Kg1 $19 Rd2 40. Kh1) 39... Nf2+ {[%emt 0:00:34]} 40. Kh4 {[%emt 0:00:43]} Ng4 {[%emt 0:00:13] Weighted Error Value: White=0.50/Black=0.02 (flawless)} 0-1

[Event "FRA-ch Teams Top 16-B 2022"]
[Site "Chartres"]
[Date "2022.06.10"]
[Round "2.31"]
[White "Cornette, Matthieu"]
[Black "Jrade, Willis"]
[Result "1-0"]
[ECO "B91"]
[WhiteElo "2570"]
[BlackElo "2129"]
[Annotator "TA"]
[PlyCount "55"]
[EventDate "2022.06.09"]
[EventType "team-tourn"]
[EventCountry "FRA"]
[SourceTitle "playchess.com"]
[Source "ChessBase"]
[SourceQuality "1"]
[TimeControl "40/5400+30:1800+30"]

{[%evp 11,55,14,15,2,62,64,60,62,64,72,66,73,137,145,145,145,145,145,145,145,158,158,158,131,158,150,164,147,172,130,147,130,188,106,170,112,257,253,602,429,793,875,868,837,812,792]} 1. e4 {[%emt 0:00:10]} c5 {[%emt 0:00:03]} 2. Nf3 {[%emt 0:00:32][%cal Bg1f3,Bf3d4,Bd4b3][%mdl 32]} d6 {[%emt 0:00:01]} 3. d4 {[%emt 0:00:09]} cxd4 {[%emt 0:00:01]} 4. Nxd4 {[%emt 0:00:00]} Nf6 {[%emt 0:00:17]} 5. Nc3 {[%emt 0:00:03]} a6 {[%emt 0:00:04]} 6. g3 {[%emt 0:00:50]} e5 {[%emt 0:00:26]} 7. Nb3 {[%emt 0:00:19] B91: Sicilian Najdorf: 6 g3.} h5 {[%emt 0:00:35]} (7... Be7 $11) 8. Bg5 $14 {[%emt 0:02:35]} Be6 {[%emt 0:03:02] [#]} 9. f4 $146 {[%emt 0:01:09] White is slightly better.} ({Predecessor:} 9. Bg2 Nbd7 10. a4 Be7 11. h3 Nb6 12. Nd2 Rc8 13. Nf1 Nc4 14. Bc1 Qb6 15. Rb1 {0-1 (46) Escobar Forero,A (2474)-Delgado Ramirez,N (2575) Bogota 2010}) 9... Nbd7 {[%emt 0:15:44]} 10. f5 {[%emt 0:07:07]} Bxb3 {[%emt 0:00:34]} 11. axb3 {[%emt 0:00:06]} Qc7 {[%emt 0:00:44] [#]} (11... Be7 $142) 12. Bb5 $1 $16 {[%emt 0:11:25]} Be7 {[%emt 0:08:31]} 13. Bxf6 {[%emt 0:01:06]} Bxf6 {[%emt 0:05:24]} 14. Nd5 {[%emt 0:01:29]} Qd8 {[%emt 0:00:20]} 15. Bxd7+ {[%emt 0:00:42]} Qxd7 {[%emt 0:07:18]} 16. O-O {[%emt 0:15:44]} Bd8 {[%emt 0:07:12] Against Nb6} 17. b4 {[%emt 0:01:02] 0x0.00166bffafebdp-1022s more active pieces. The black rooks are badly placed.} Rc8 {[%emt 0:11:36]} 18. c3 {[%emt 0:08:28]} h4 {[%emt 0:05:07]} 19. Qf3 {[%emt 0:02:27]} Rh6 {[%emt 0:15:11]} 20. Rad1 {[%emt 0:02:39]} Kf8 {[%emt 0:03:53]} 21. Kg2 {[%emt 0:01:29]} Qa4 {[%emt 0:02:33]} (21... Qb5 $16) 22. Rd2 {[%emt 0:08:03]} (22. f6 $18 {Intending fxg7+ and mate.} gxf6 23. Qe2) 22... Qa2 {[%emt 0:03:00]} (22... Bg5 $16 23. Rdd1 Qb3) 23. Qg4 {[%emt 0:01:58]} (23. gxh4 $18 Rxh4 24. f6 Bxf6 25. Nxf6 gxf6 26. Qxf6 Rg4+ 27. Kh3) 23... Qc4 {[%emt 0:00:46] [#]} (23... Ra8 $16) 24. f6 $1 $18 {[%emt 0:04:52]} g6 {[%emt 0:01:51]} (24... gxf6 25. Ne3 h3+ 26. Kh1 f5 27. Rxf5 (27. Nxc4 fxg4 28. Nxd6 Rc7 $16) 27... Qe6) 25. Ne3 {[%emt 0:02:03] White is clearly winning.} Qc7 {[%emt 0:04:04]} (25... Qe6 $142 26. Qxe6 fxe6 27. Rxd6 Rh7 28. Rxe6 h3+ 29. Kf3 Rd7) 26. Rfd1 {[%emt 0:01:50]} hxg3 {[%emt 0:00:07]} 27. hxg3 {[%emt 0:00:34]} Bxf6 {[%emt 0:00:20]} 28. Nd5 {[%emt 0:00:04] White took control after the opening.  Weighted Error Value: White=0.21 (precise) /Black=0.49} 1-0

[Event "FRA-ch Teams Top 16-B 2022"]
[Site "Chartres"]
[Date "2022.06.10"]
[Round "2.32"]
[White "Rollot, Florence"]
[Black "Guichard, Pauline"]
[Result "0-1"]
[ECO "A22"]
[WhiteElo "2017"]
[BlackElo "2377"]
[Annotator "TA"]
[PlyCount "74"]
[EventDate "2022.06.09"]
[EventType "team-tourn"]
[EventCountry "FRA"]
[SourceTitle "playchess.com"]
[Source "ChessBase"]
[SourceQuality "1"]
[TimeControl "40/5400+30:1800+30"]

{[%evp 9,74,4,0,-19,-20,-74,0,-9,0,0,0,0,0,-22,-16,-18,-12,-36,-33,-37,-39,-39,-43,-45,6,14,0,-17,-7,-41,-24,-16,-23,-84,-84,-253,-219,-642,-624,-614,-614,-794,-561,-793,-753,-1655,-1186,-29961,-29962,-29962,-29961,-2520,-1059,-444,0,-2051,-1029,-29988,-29989,-29991,-29990,-29990,-29991,-29997,-29998,-29998,-29999]} 1. c4 {[%emt 0:00:04]} Nf6 {[%emt 0:00:11]} 2. Nc3 {[%emt 0:00:08]} e5 {[%emt 0:00:15]} 3. g3 {[%emt 0:00:12]} Bb4 {[%emt 0:01:08]} 4. Bg2 {[%emt 0:01:19]} O-O {[%emt 0:00:48]} 5. Nf3 {[%emt 0:13:05]} Re8 {[%emt 0:00:44]} 6. Qb3 {[%emt 0:03:12] A22: English Opening: 1...e5 2 Nc3 Nf6.} Nc6 {[%emt 0:07:53]} 7. Nd5 {[%emt 0:05:07] [#]} (7. O-O $11) 7... Bc5 {[%emt 0:06:09]} (7... e4 $1 $17 8. Nh4 (8. Nxb4 exf3 9. Bxf3 Nd4 $17) 8... Bc5) 8. d3 $11 {[%emt 0:08:22] The position is equal.} Nxd5 {[%emt 0:04:41]} 9. cxd5 {[%emt 0:00:39]} Nd4 {[%emt 0:00:27]} 10. Nxd4 {[%emt 0:06:41]} exd4 {[%emt 0:02:18] [#]} 11. Bf3 $146 {[%emt 0:02:43]} ({Predecessor:} 11. Qc2 d6 12. O-O {1-0 (12) Stummerer,A (2144)-Urias,L (1400) UECC email 2000}) 11... a5 {[%emt 0:03:48][%cal Ba7a5,Ba5a4][%mdl 32]} 12. O-O {[%emt 0:02:33]} a4 {[%emt 0:00:49]} 13. Qc4 {[%emt 0:10:07]} d6 {[%emt 0:02:53]} 14. b3 {[%emt 0:02:18]} Bh3 {[%emt 0:06:57]} 15. Re1 {[%emt 0:00:54]} Qd7 {[%emt 0:00:19]} 16. Rb1 {[%emt 0:10:37]} Bg4 {[%emt 0:08:16]} (16... Re7 $15) 17. Bxg4 {[%emt 0:12:07]} Qxg4 {[%emt 0:00:16]} 18. b4 {[%emt 0:00:21]} Bb6 {[%emt 0:03:32]} 19. Rb2 {[%emt 0:00:48]} h5 {[%emt 0:06:30][%cal Bh7h5,Bh5h4][%mdl 32]} 20. Kg2 {[%emt 0:05:42]} Re5 {[%emt 0:07:32]} 21. f4 {[%emt 0:06:55]} (21. h4 $11 {remains equal.}) 21... Re7 $17 {[%emt 0:00:56] aiming for ...a3. Black is more active. White is on the road to losing.} 22. a3 $2 {[%emt 0:05:01]} (22. h3 $17 {was necessary.} Qg6 23. a3) 22... Rae8 {[%emt 0:03:15][%cal Re7e2]} 23. Qa2 $2 {[%emt 0:01:02]} (23. e3 dxe3 24. h3) 23... h4 $19 {[%emt 0:00:25]} 24. Rc2 {[%emt 0:00:16]} g6 {[%emt 0:09:21]} 25. Rb2 {[%emt 0:00:16]} Kg7 {[%emt 0:04:56]} 26. Rc2 {[%emt 0:00:10]} hxg3 {[%emt 0:02:03]} 27. hxg3 {[%emt 0:00:03]} f6 {[%emt 0:03:44] And now ...Rh8 would win.} 28. Qb2 {[%emt 0:01:05]} Rh8 {[%emt 0:00:50]} 29. Rg1 {[%emt 0:00:19]} Rh3 {[%emt 0:03:04]} 30. Kf2 {[%emt 0:00:02]} Rh2+ {[%emt 0:01:13]} (30... Kg8 $142 31. Rg2 {[#]} Re3 $1 {[%mdl 512]}) 31. Ke1 {[%emt 0:01:22]} Rh3 {[%emt 0:02:12]} (31... Qf3 $142 32. Kd1 Qf2) 32. Kf2 $1 {[%emt 0:00:07]} Qh5 {[%emt 0:02:09] ( -> ...Rh2+)} 33. Qa2 {[%emt 0:01:15]} Rh2+ {[%emt 0:00:26] Black mates.} 34. Rg2 {[%emt 0:01:29]} Qh3 {[%emt 0:00:19]} 35. Rxh2 {[%emt 0:00:01]} Qxh2+ {[%emt 0:00:06]} 36. Kf3 {[%emt 0:00:06] [#]} Re3+ $1 {[%emt 0:01:58][%mdl 512]} 37. Bxe3 {[%emt 0:00:04]} Qh1+ {[%emt 0:00:08] Weighted Error Value: White=0.77/Black=0.80} (37... dxe3 38. Rc1 $17) 0-1